fUST/lending_fUST_20241213
["ID","MTS","AMOUNT","RATE_DAILY","PERIOD"]
[345118929,1734036633630,-506.15,0.00027397,7]
[345118930,1734036633639,-151.0,0.00027397,7]
[345118931,1734036633654,-151.0,0.00027397,7]
[345118932,1734036633665,-207.207786,0.00027397,7]
[345118933,1734036633676,-500.0,0.00027397,7]
[345118934,1734036633686,-401.88068382,0.00027397,7]
[345118935,1734036633696,-500.0,0.00027397,7]
[345118936,1734036633706,-500.0,0.00027397,7]
[345118937,1734036633716,-500.0,0.00027397,7]
[345118938,1734036633726,-500.0,0.00027397,7]
[345118939,1734036633736,-500.0,0.00027397,7]
[345118940,1734036633746,-500.0,0.00027397,7]
[345118941,1734036633755,-500.0,0.00027397,7]
[345118942,1734036633765,-529.14,0.00027397,7]
[345118943,1734036633775,-500.0,0.00027397,7]
[345118944,1734036633785,-500.0,0.00027397,7]
[345118945,1734036633795,-633.29,0.00027397,7]
[345118946,1734036633804,-500.0,0.00027397,7]
[345118947,1734036633813,-611.89,0.00027397,7]
[345118948,1734036633823,-613.52036825,0.00027397,7]
[345118949,1734036633832,-500.0,0.00027397,7]
[345118950,1734036633842,-693.0,0.00027397,7]
[345118951,1734036633852,-500.0,0.00027397,7]
[345118952,1734036633861,-500.0,0.00027397,7]
[345118953,1734036633871,-500.0,0.00027397,7]
[345118954,1734036633883,-512.75,0.00027397,7]
[345118955,1734036633892,-563.7007935,0.00027397,7]
[345118956,1734036633906,-500.0,0.00027397,7]
[345118957,1734036633915,-757.49,0.00027397,7]
[345118958,1734036633926,-500.0,0.00027397,7]
[345118959,1734036633936,-500.0,0.00027397,7]
[345118960,1734036633946,-600.16,0.00027397,7]
[345118961,1734036633956,-500.0,0.00027397,7]
[345118962,1734036633966,-552.6801115,0.00027397,7]
[345118963,1734036633976,-500.0,0.00027397,7]
[345118964,1734036633987,-507.91317034,0.00027397,7]
[345118965,1734036633996,-653.58,0.00027397,7]
[345118966,1734036634016,-500.0,0.00027397,7]
[345118967,1734036634032,-500.0,0.00027397,7]
[345118968,1734036634052,-500.0,0.00027397,7]
[345118969,1734036634072,-500.0,0.00027397,7]
[345118970,1734036634090,-259.99764,0.00027397,7]
[345118971,1734036634107,-259.99764,0.00027397,7]
[345118972,1734036634126,-259.99764,0.00027397,7]
[345118973,1734036634142,-259.99764,0.00027397,7]
[345118974,1734036634160,-259.99764,0.00027397,7]
[345118975,1734036634180,-2893.13,0.00027397,7]
[345118976,1734036634199,-259.99764,0.00027397,7]
[345118977,1734036634212,-259.99764,0.00027397,7]
[345118978,1734036634231,-259.99764,0.00027397,7]
[345118979,1734036634247,-259.99764,0.00027397,7]
[345118980,1734036634263,-259.99764,0.00027397,7]
[345118981,1734036634277,-259.99764,0.00027397,7]
[345118982,1734036634291,-894.75,0.00027397,7]
[345118983,1734036634306,-259.99764,0.00027397,7]
[345118984,1734036634323,-259.99764,0.00027397,7]
[345118985,1734036634338,-833.71,0.00027397,7]
[345118986,1734036634353,-259.99764,0.00027397,7]
[345118987,1734036634368,-259.99764,0.00027397,7]
[345118988,1734036634383,-259.99764,0.00027397,7]
[345118989,1734036634400,-259.99764,0.00027397,7]
[345118990,1734036634415,-535.60466609,0.00027397,7]
[345118991,1734036634430,-259.99764,0.00027397,7]
[345118992,1734036634444,-259.99764,0.00027397,7]
[345118993,1734036634458,-500.0,0.00027397,7]
[345118994,1734036634472,-259.997642,0.00027397,7]
[345118995,1734036634487,-500.0,0.00027397,7]
[345118996,1734036634501,-500.0,0.00027397,7]
[345118997,1734036634516,-500.0,0.00027397,7]
[345118998,1734036634530,-500.0,0.00027397,7]
[345118999,1734036634544,-500.0,0.00027397,7]
[345119000,1734036634559,-500.0,0.00027397,7]
[345119001,1734036634573,-500.0,0.00027397,7]
[345119002,1734036634588,-500.0,0.00027397,7]
[345119003,1734036634602,-500.0,0.00027397,7]
[345119004,1734036634616,-500.0,0.00027397,7]
[345119005,1734036634630,-500.0,0.00027397,7]
[345119006,1734036634644,-500.0,0.00027397,7]
[345119007,1734036634658,-500.0,0.00027397,7]
[345119008,1734036634676,-500.0,0.00027397,7]
[345119009,1734036634690,-500.0,0.00027397,7]
[345119010,1734036634705,-500.0,0.00027397,7]
[345119011,1734036634720,-500.0,0.00027397,7]
[345119012,1734036634734,-500.0,0.00027397,7]
[345119013,1734036634748,-1137.04,0.00027397,7]
[345119014,1734036634763,-500.0,0.00027397,7]
[345119015,1734036634777,-500.0,0.00027397,7]
[345119016,1734036634791,-500.0,0.00027397,7]
[345119017,1734036634805,-500.0,0.00027397,7]
[345119018,1734036634819,-500.0,0.00027397,7]
[345119019,1734036634835,-500.0,0.00027397,7]
[345119020,1734036634849,-504.61749269,0.00027397,7]
[345119021,1734036634864,-500.0,0.00027397,7]
[345119022,1734036634879,-1000.0,0.00027397,7]
[345119023,1734036634895,-500.0,0.00027397,7]
[345119024,1734036634911,-500.0,0.00027397,7]
[345119025,1734036634926,-503.51774033,0.00027397,7]
[345119026,1734036634941,-851.97,0.00027397,7]
[345119027,1734036634956,-1309.13,0.00027397,7]
[345119028,1734036634972,-500.0,0.00027397,7]
[345119029,1734036634987,-500.0,0.00027397,7]
[345119030,1734036635130,-500.0,0.00027397,7]
[345119031,1734036635152,-510.84203446,0.00027397,7]
[345119032,1734036635162,-500.0,0.00027397,7]
[345119033,1734036635171,-500.0,0.00027397,7]
[345119034,1734036635181,-500.0,0.00027397,7]
[345119035,1734036635190,-1162.0,0.00027397,7]
[345119036,1734036635200,-151.0,0.00027397,7]
[345119037,1734036635210,-500.0,0.00027397,7]
[345119038,1734036635220,-151.0,0.00027397,7]
[345119039,1734036635230,-2314.71,0.00027397,7]
[345119040,1734036635240,-151.0,0.00027397,7]
[345119041,1734036635249,-151.0,0.00027397,7]
[345119042,1734036635259,-151.0,0.00027397,7]
[345119043,1734036635269,-151.0,0.00027397,7]
[345119044,1734036635279,-151.0,0.00027397,7]
[345119045,1734036635288,-151.0,0.00027397,7]
[345119046,1734036635299,-297.653189,0.00027397,7]
[345119047,1734036635308,-500.0,0.00027397,7]
[345119048,1734036635319,-500.0,0.00027397,7]
[345119049,1734036635328,-500.0,0.00027397,7]
[345119050,1734036635339,-500.0,0.00027397,7]
[345119051,1734036635349,-500.0,0.00027397,7]
[345119052,1734036635359,-500.0,0.00027397,7]
[345119053,1734036635368,-546.1738869,0.00027397,7]
[345119054,1734036635378,-500.0,0.00027397,7]
[345119055,1734036635388,-500.0,0.00027397,7]
[345119056,1734036635399,-500.0,0.00027397,7]
[345119057,1734036635408,-652.32,0.00027397,7]
[345119058,1734036635418,-870.85,0.00027397,7]
[345119059,1734036635428,-500.0,0.00027397,7]
[345119060,1734036635438,-500.0,0.00027397,7]
[345119061,1734036635448,-520.64,0.00027397,7]
[345119062,1734036635459,-500.0,0.00027397,7]
[345119063,1734036635469,-500.0,0.00027397,7]
[345119064,1734036635479,-502.26374939,0.00027397,7]
[345119065,1734036635488,-758.21,0.00027397,7]
[345119066,1734036635498,-637.62942757,0.00027397,7]
[345119067,1734036635507,-500.0,0.00027397,7]
[345119068,1734036635517,-500.0,0.00027397,7]
[345119069,1734036635526,-532.83,0.00027397,7]
[345119070,1734036635536,-500.0,0.00027397,7]
[345119071,1734036635546,-500.0,0.00027397,7]
[345119072,1734036635555,-500.0,0.00027397,7]
[345119073,1734036635566,-501.20297495,0.00027397,7]
[345119074,1734036635576,-500.0,0.00027397,7]
[345119075,1734036635586,-2913.35,0.00027397,7]
[345119076,1734036635596,-500.0,0.00027397,7]
[345119077,1734036635606,-500.0,0.00027397,7]
[345119078,1734036635615,-500.0,0.00027397,7]
[345119079,1734036635625,-500.0,0.00027397,7]
[345119080,1734036635635,-500.0,0.00027397,7]
[345119081,1734036635645,-521.58,0.00027397,7]
[345119082,1734036635656,-1105.95,0.00027397,7]
[345119083,1734036635667,-500.0,0.00027397,7]
[345119084,1734036635678,-857.34,0.00027397,7]
[345119085,1734036635688,-500.0,0.00027397,2]
[345119086,1734036635697,-807.45,0.00027397,7]
[345119087,1734036635707,-617.21,0.00027397,7]
[345119088,1734036635718,-500.0,0.00027397,7]
[345119089,1734036635728,-500.0,0.00027397,7]
[345119090,1734036635737,-500.0,0.00027397,7]
[345119091,1734036635748,-151.0,0.00027397,7]
[345119092,1734036635758,-151.0,0.00027397,7]
[345119093,1734036635769,-151.0,0.00027397,7]
[345119094,1734036635779,-151.0,0.00027397,7]
[345119095,1734036635789,-151.0,0.00027397,7]
[345119096,1734036635799,-151.0,0.00027397,7]
[345119097,1734036635809,-500.0,0.00027397,7]
[345119098,1734036635819,-151.0,0.00027397,7]
[345119099,1734036635828,-500.0,0.00027397,7]
[345119100,1734036635837,-151.0,0.00027397,7]
[345119101,1734036635847,-500.0,0.00027397,7]
[345119102,1734036635856,-151.0,0.00027397,7]
[345119103,1734036635866,-151.0,0.00027397,7]
[345119104,1734036635876,-153.10357,0.00027397,7]
[345119105,1734036635885,-500.0,0.00027397,7]
[345119106,1734036635896,-500.0,0.00027397,7]
[345119107,1734036635905,-504.9674665,0.00027397,7]
[345119108,1734036635916,-500.0,0.00027397,7]
[345119109,1734036635926,-500.0,0.00027397,7]
[345119110,1734036635936,-500.0,0.00027397,7]
[345119111,1734036635945,-500.0,0.00027397,7]
[345119112,1734036635955,-500.0,0.00027397,7]
[345119113,1734036635965,-500.0,0.00027397,7]
[345119114,1734036635975,-500.0,0.00027397,7]
[345119115,1734036635984,-483.00484972,0.00027397,2]
[345119116,1734036635994,-500.0,0.00027397,7]
[345119117,1734036636004,-500.0,0.00027397,7]
[345119118,1734036636014,-500.0,0.00027397,7]
[345119119,1734036636024,-500.0,0.00027397,7]
[345119120,1734036636033,-500.0,0.00027397,7]
[345119121,1734036636043,-500.0,0.00027397,7]
[345119122,1734036636054,-500.0,0.00027397,7]
[345119123,1734036636067,-867.3,0.00027397,7]
[345119124,1734036636077,-500.0,0.00027397,7]
[345119125,1734036636087,-186.80664649,0.00027397,7]
[345119126,1734036636097,-1032.58,0.00027397,7]
[345119127,1734036636107,-500.0,0.00027397,7]
[345119128,1734036636116,-500.0,0.00027397,7]
[345119129,1734036636126,-520.16,0.00027397,7]
[345119130,1734036636135,-500.0,0.00027397,7]
[345119131,1734036636145,-500.0,0.00027397,7]
[345119132,1734036636155,-500.0,0.00027397,7]
[345119133,1734036636165,-500.0,0.00027397,7]
[345119134,1734036636175,-500.0,0.00027397,7]
[345119135,1734036636186,-500.0,0.00027397,7]
[345119136,1734036636196,-500.0,0.00027397,7]
[345119137,1734036636206,-1022.99,0.00027397,7]
[345119138,1734036636215,-500.0,0.00027397,7]
[345119139,1734036636226,-500.0,0.00027397,7]
[345119140,1734036636236,-769.56,0.00027397,7]
[345119141,1734036636245,-500.0,0.00027397,7]
[345119142,1734036636255,-500.0,0.00027397,7]
[345119143,1734036636264,-500.0,0.00027397,7]
[345119144,1734036636273,-636.3,0.00027397,7]
[345119145,1734036636283,-500.0,0.00027397,7]
[345119146,1734036636297,-578.65,0.00027397,7]
[345119147,1734036636307,-500.0,0.00027397,7]
[345119148,1734036636316,-500.0,0.00027397,7]
[345119149,1734036636326,-848.23,0.00027397,7]
[345119150,1734036636336,-843.74,0.00027397,7]
[345119151,1734036636345,-500.0,0.00027397,7]
[345119152,1734036636355,-500.0,0.00027397,7]
[345119153,1734036636366,-500.0,0.00027397,7]
[345119154,1734036636375,-1606.77,0.00027397,7]
[345119155,1734036636386,-509.02617082,0.00027397,7]
[345119156,1734036636397,-552.7,0.00027397,7]
[345119157,1734036636406,-500.0,0.00027397,7]
[345119158,1734036636416,-1292.17,0.00027397,7]
[345119159,1734036636426,-500.0,0.00027397,7]
[345119160,1734036636435,-151.0,0.00027397,7]
[345119161,1734036636445,-151.0,0.00027397,7]
[345119162,1734036636455,-261.473686,0.00027397,7]
[345119163,1734036636465,-500.0,0.00027397,7]
[345119164,1734036636475,-650.88,0.00027397,7]
[345119165,1734036636485,-500.0,0.00027397,7]
[345119166,1734036636495,-513.55442871,0.00027397,7]
[345119167,1734036636504,-500.0,0.00027397,7]
[345119168,1734036636513,-151.0,0.00027397,7]
[345119169,1734036636523,-500.0,0.00027397,7]
[345119170,1734036636533,-151.0,0.00027397,7]
[345119171,1734036636543,-151.0,0.00027397,7]
[345119172,1734036636552,-151.0,0.00027397,7]
[345119173,1734036636562,-725.44,0.00027397,7]
[345119174,1734036636571,-500.0,0.00027397,7]
[345119175,1734036636581,-500.0,0.00027397,7]
[345119176,1734036636590,-500.0,0.00027397,7]
[345119177,1734036636599,-500.0,0.00027397,7]
[345119178,1734036636609,-696.0,0.00027397,7]
[345119179,1734036636619,-500.0,0.00027397,2]
[345119180,1734036636628,-1999.58,0.00027397,7]
[345119181,1734036636638,-845.91,0.00027397,7]
[345119182,1734036636650,-500.0,0.00027397,7]
[345119183,1734036636660,-500.0,0.00027397,7]
[345119184,1734036636673,-1958.05,0.00027397,7]
[345119185,1734036636683,-500.0,0.00027397,7]
[345119186,1734036636693,-512.15,0.00027397,7]
[345119187,1734036636704,-500.0,0.00027397,7]
[345119188,1734036636715,-500.0,0.00027397,7]
[345119189,1734036636725,-500.0,0.00027397,7]
[345119190,1734036636735,-538.77,0.00027397,7]
[345119191,1734036636746,-151.0,0.00027397,7]
[345119192,1734036636757,-151.0,0.00027397,7]
[345119193,1734036636766,-151.0,0.00027397,7]
[345119194,1734036636776,-500.0,0.00027397,7]
[345119195,1734036636786,-151.0,0.00027397,7]
[345119196,1734036636797,-174.991745,0.00027397,7]
[345119197,1734036636806,-1273.8,0.00027397,7]
[345119198,1734036636910,-151.0,0.00027397,7]
[345119199,1734036636921,-151.0,0.00027397,7]
[345119200,1734036636930,-613.98,0.00027397,7]
[345119201,1734036636940,-152.2115,0.00027397,7]
[345119202,1734036636950,-500.0,0.00027397,7]
[345119203,1734036636960,-1819.2,0.00027397,7]
[345119204,1734036636970,-1137.09,0.00027397,7]
[345119205,1734036636980,-500.0,0.00027397,7]
[345119206,1734036636990,-500.0,0.00027397,7]
[345119207,1734036637000,-500.0,0.00027397,7]
[345119208,1734036637010,-500.0,0.00027397,7]
[345119209,1734036637020,-500.0,0.00027397,7]
[345119210,1734036637030,-604.22,0.00027397,7]
[345119211,1734036637040,-500.0,0.00027397,7]
[345119212,1734036637050,-1099.87,0.00027397,7]
[345119213,1734036637060,-500.0,0.00027397,7]
[345119214,1734036637070,-937.23,0.00027397,7]
[345119215,1734036637080,-500.0,0.00027397,7]
[345119216,1734036637090,-500.0,0.00027397,7]
[345119217,1734036637100,-1099.27,0.00027397,7]
[345119218,1734036637109,-611.92,0.00027397,7]
[345119219,1734036637119,-1349.05,0.00027397,7]
[345119220,1734036637129,-552.15,0.00027397,7]
[345119221,1734036637139,-528.43915168,0.00027397,7]
[345119222,1734036637151,-500.0,0.00027397,7]
[345119223,1734036637161,-500.0,0.00027397,7]
[345119224,1734036637171,-624.82641516,0.00027397,7]
[345119225,1734036637180,-529.95991812,0.00027397,7]
[345119226,1734036637191,-500.0,0.00027397,7]
[345119227,1734036637200,-500.0,0.00027397,7]
[345119228,1734036637210,-500.0,0.00027397,7]
[345119229,1734036637220,-500.0,0.00027397,7]
[345119230,1734036637229,-888.61,0.00027397,7]
[345119231,1734036637239,-500.0,0.00027397,7]
[345119232,1734036637249,-500.0,0.00027397,7]
[345119233,1734036637259,-2241.73,0.00027397,7]
[345119234,1734036637268,-501.12704883,0.00027397,7]
[345119236,1734036637278,-868.5,0.00027397,7]
[345119237,1734036637287,-500.0,0.00027397,7]
[345119238,1734036637297,-500.0,0.00027397,7]
[345119239,1734036637306,-528.3,0.00027397,7]
[345119240,1734036637316,-500.0,0.00027397,7]
[345119241,1734036637325,-500.0,0.00027397,7]
[345119242,1734036637335,-500.0,0.00027397,7]
[345119243,1734036637344,-500.0,0.00027397,7]
[345119244,1734036637354,-500.0,0.00027397,7]
[345119245,1734036637363,-1000.32,0.00027397,7]
[345119246,1734036637373,-500.0,0.00027397,7]
[345119247,1734036637382,-2161.27,0.00027397,7]
[345119248,1734036637392,-500.0,0.00027397,7]
[345119249,1734036637405,-583.77,0.00027397,7]
[345119250,1734036637414,-500.0,0.00027397,7]
[345119251,1734036637423,-500.0,0.00027397,7]
[345119252,1734036637433,-500.0,0.00027397,7]
[345119254,1734036637443,-983.5,0.00027397,7]
[345119256,1734036637453,-500.0,0.00027397,7]
[345119258,1734036637463,-500.0,0.00027397,7]
[345119260,1734036637472,-972.54,0.00027397,7]
[345119261,1734036637482,-523.95228768,0.00027397,7]
[345119262,1734036637492,-500.0,0.00027397,7]
[345119263,1734036637502,-500.0,0.00027397,7]
[345119264,1734036637512,-708.19,0.00027397,7]
[345119265,1734036637523,-518.25,0.00027397,7]
[345119266,1734036637534,-500.0,0.00027397,7]
[345119267,1734036637544,-500.0,0.00027397,7]
[345119268,1734036637554,-500.0,0.00027397,7]
[345119269,1734036637564,-500.0,0.00027397,7]
[345119270,1734036637574,-500.0,0.00027397,7]
[345119271,1734036637583,-584.13,0.00027397,7]
[345119272,1734036637599,-168.0,0.00027397,7]
[345119274,1734036637609,-500.0,0.00027397,7]
[345119275,1734036637618,-500.0,0.00027397,7]
[345119276,1734036637628,-500.0,0.00027397,7]
[345119277,1734036637638,-987.39,0.00027397,7]
[345119278,1734036637649,-500.0,0.00027397,7]
[345119280,1734036637658,-500.0,0.00027397,7]
[345119281,1734036637669,-980.67,0.00027397,7]
[345119283,1734036637678,-502.81963773,0.00027397,7]
[345119285,1734036637688,-500.0,0.00027397,7]
[345119287,1734036637698,-500.0,0.00027397,7]
[345119288,1734036637708,-500.0,0.00027397,7]
[345119289,1734036637719,-500.0,0.00027397,7]
[345119290,1734036637728,-500.0,0.00027397,7]
[345119291,1734036637737,-500.0,0.00027397,7]
[345119293,1734036637747,-500.0,0.00027397,7]
[345119294,1734036637757,-614.50497629,0.00027397,7]
[345119296,1734036637766,-500.0,0.00027397,7]
[345119297,1734036637775,-500.0,0.00027397,7]
[345119299,1734036637785,-582.03,0.00027397,7]
[345119300,1734036637794,-500.0,0.00027397,7]
[345119302,1734036637803,-500.0,0.00027397,7]
[345119303,1734036637813,-500.0,0.00027397,7]
[345119305,1734036637823,-500.0,0.00027397,7]
[345119306,1734036637832,-605.64,0.00027397,7]
[345119308,1734036637841,-724.02,0.00027397,7]
[345119309,1734036637850,-500.0,0.00027397,7]
[345119311,1734036637860,-1148.52,0.00027397,7]
[345119312,1734036637870,-500.0,0.00027397,7]
[345119314,1734036637880,-1002.85313824,0.00027397,7]
[345119315,1734036637889,-500.0,0.00027397,7]
[345119317,1734036637899,-500.0,0.00027397,7]
[345119318,1734036637908,-500.0,0.00027397,7]
[345119320,1734036637917,-1176.92,0.00027397,7]
[345119321,1734036637927,-500.0,0.00027397,7]
[345119323,1734036637937,-500.0,0.00027397,7]
[345119324,1734036637946,-500.0,0.00027397,7]
[345119326,1734036637955,-500.0,0.00027397,7]
[345119328,1734036637965,-500.0,0.00027397,7]
[345119329,1734036637978,-500.0,0.00027397,7]
[345119330,1734036637987,-845.09,0.00027397,7]
[345119332,1734036637997,-859.09,0.00027397,7]
[345119333,1734036638006,-500.0,0.00027397,7]
[345119335,1734036638015,-502.66,0.00027397,7]
[345119336,1734036638026,-1604.94,0.00027397,7]
[345119337,1734036638035,-500.0,0.00027397,7]
[345119338,1734036638045,-500.0,0.00027397,7]
[345119340,1734036638055,-500.0,0.00027397,7]
[345119342,1734036638064,-500.0,0.00027397,7]
[345119344,1734036638074,-500.0,0.00027397,7]
[345119345,1734036638083,-509.84,0.00027397,7]
[345119347,1734036638093,-683.7,0.00027397,7]
[345119348,1734036638102,-500.0,0.00027397,7]
[345119349,1734036638112,-253.747582,0.00027397,7]
[345119350,1734036638122,-500.0,0.00027397,7]
[345119351,1734036638131,-253.747582,0.00027397,7]
[345119352,1734036638141,-253.747582,0.00027397,7]
[345119354,1734036638153,-253.747582,0.00027397,7]
[345119356,1734036638162,-253.747582,0.00027397,7]
[345119358,1734036638172,-253.747582,0.00027397,7]
[345119360,1734036638181,-253.747582,0.00027397,7]
[345119362,1734036638191,-253.747582,0.00027397,7]
[345119363,1734036638201,-500.0,0.00027397,7]
[345119364,1734036638210,-500.0,0.00027397,7]
[345119365,1734036638220,-253.747582,0.00027397,7]
[345119366,1734036638230,-253.747582,0.00027397,7]
[345119367,1734036638239,-500.0,0.00027397,7]
[345119368,1734036638248,-253.747582,0.00027397,7]
[345119369,1734036638257,-502.55847904,0.00027397,7]
[345119370,1734036638267,-253.747582,0.00027397,7]
[345119371,1734036638276,-407.42580085,0.00027397,7]
[345119372,1734036638286,-253.747582,0.00027397,7]
[345119373,1734036638295,-313.45189605,0.00027397,7]
[345119374,1734036638304,-253.747582,0.00027397,7]
[345119375,1734036638314,-500.0,0.00027397,7]
[345119376,1734036638323,-253.747582,0.00027397,7]
[345119377,1734036638332,-253.747582,0.00027397,7]
[345119378,1734036638341,-253.747582,0.00027397,7]
[345119379,1734036638351,-500.0,0.00027397,7]
[345119380,1734036638360,-253.747582,0.00027397,7]
[345119381,1734036638369,-500.0,0.00027397,7]
[345119382,1734036638379,-253.747582,0.00027397,7]
[345119383,1734036638388,-500.0,0.00027397,7]
[345119384,1734036638400,-253.747574,0.00027397,7]
[345119385,1734036638409,-919.8,0.00027397,7]
[345119386,1734036638419,-500.0,0.00027397,7]
[345119387,1734036638515,-1134.97,0.00027397,7]
[345119388,1734036638525,-500.0,0.00027397,7]
[345119389,1734036638535,-1396.07,0.00027397,7]
[345119390,1734036638545,-500.0,0.00027397,7]
[345119391,1734036638555,-500.0,0.00027397,7]
[345119392,1734036638564,-500.0,0.00027397,7]
[345119393,1734036638574,-2808.47,0.00027397,7]
[345119394,1734036638583,-500.0,0.00027397,7]
[345119395,1734036638593,-500.0,0.00027397,7]
[345119396,1734036638603,-996.24,0.00027397,7]
[345119397,1734036638613,-500.0,0.00027397,7]
[345119398,1734036638622,-500.0,0.00027397,7]
[345119399,1734036638631,-1121.74,0.00027397,7]
[345119400,1734036638641,-500.0,0.00027397,7]
[345119401,1734036638652,-500.0,0.00027397,7]
[345119402,1734036638661,-627.43,0.00027397,7]
[345119403,1734036638674,-500.0,0.00027397,7]
[345119404,1734036638683,-500.0,0.00027397,7]
[345119405,1734036638693,-500.0,0.00027397,7]
[345119406,1734036638703,-602.19,0.00027397,7]
[345119407,1734036638713,-500.0,0.00027397,7]
[345119408,1734036638723,-581.9378297,0.00027397,7]
[345119409,1734036638732,-1946.1,0.00027397,7]
[345119410,1734036638742,-500.0,0.00027397,7]
[345119411,1734036638751,-500.0,0.00027397,7]
[345119412,1734036638763,-500.0,0.00027397,7]
[345119413,1734036638773,-500.0,0.00027397,7]
[345119414,1734036638782,-500.0,0.00027397,7]
[345119415,1734036638791,-3674.08,0.00027397,7]
[345119416,1734036638800,-500.0,0.00027397,7]
[345119417,1734036638810,-1982.66,0.00027397,7]
[345119418,1734036638820,-237.19240129,0.00027397,7]
[345119419,1734036638829,-500.0,0.00027397,7]
[345119420,1734036638839,-1388.22,0.00027397,7]
[345119421,1734036638848,-500.0,0.00027397,7]
[345119422,1734036638858,-500.0,0.00027397,7]
[345119423,1734036638867,-500.0,0.00027397,7]
[345119424,1734036638878,-500.0,0.00027397,7]
[345119425,1734036638887,-500.0,0.00027397,7]
[345119426,1734036638899,-600.65229069,0.00027397,7]
[345119427,1734036638909,-900.16,0.00027397,7]
[345119428,1734036638920,-418.40778467,0.00027397,7]
[345119429,1734036638929,-500.0,0.00027397,7]
[345119430,1734036638939,-500.0,0.00027397,7]
[345119431,1734036638948,-537.27,0.00027397,7]
[345119432,1734036638958,-500.0,0.00027397,7]
[345119433,1734036638968,-500.0,0.00027397,7]
[345119434,1734036638978,-500.0,0.00027397,7]
[345119435,1734036638988,-500.0,0.00027397,7]
[345119436,1734036638998,-1564.03,0.00027397,7]
[345119437,1734036639008,-500.0,0.00027397,7]
[345119438,1734036639018,-604.22,0.00027397,7]
[345119439,1734036639028,-500.0,0.00027397,7]
[345119440,1734036639037,-1721.16,0.00027397,7]
[345119441,1734036639047,-523.42,0.00027397,7]
[345119442,1734036639057,-500.0,0.00027397,7]
[345119443,1734036639066,-1877.83,0.00027397,7]
[345119444,1734036639076,-500.0,0.00027397,7]
[345119445,1734036639085,-972.56,0.00027397,7]
[345119446,1734036639095,-607.58831374,0.00027397,7]
[345119447,1734036639106,-1676.11,0.00027397,7]
[345119448,1734036639116,-500.0,0.00027397,7]
[345119449,1734036639127,-901.8,0.00027397,7]
[345119450,1734036639137,-539.0,0.00027397,7]
[345119451,1734036639150,-500.0,0.00027397,7]
[345119452,1734036639160,-500.0,0.00027397,7]
[345119453,1734036639170,-500.0,0.00027397,7]
[345119454,1734036639179,-500.0,0.00027397,7]
[345119455,1734036639189,-3808.44,0.00027397,7]
[345119456,1734036639199,-500.0,0.00027397,7]
[345119457,1734036639209,-1067.22,0.00027397,7]
[345119458,1734036639218,-500.0,0.00027397,7]
[345119459,1734036639228,-1019.33,0.00027397,7]
[345119460,1734036639238,-500.0,0.00027397,7]
[345119461,1734036639247,-500.0,0.00027397,7]
[345119462,1734036639257,-151.0,0.00027397,7]